[Event "Superbet Blitz Poland 2023"]
[Site "Warsaw"]
[Date "2023.05.24"]
[Round "8"]
[White "Rapport, Richard"]
[Black "Giri, Anish"]
[Result "1-0"]
[ECO "D00"]
[WhiteElo "2745"]
[BlackElo "2768"]
[Annotator "TA"]
[PlyCount "75"]
[EventDate "2023.05.24"]
[EventType "tourn"]
[EventCountry "POL"]
[SourceTitle "playchess.com"]
[Source "ChessBase"]
[SourceQuality "1"]
[TimeControl "300+2"]

{[%evp 9,75,-24,0,0,0,0,0,0,0,0,0,0,0,0,0,-12,0,0,-10,-30,-30,-29,0,-433,-345,-341,-372,-352,-356,-356,-231,-190,-156,-98,46,49,82,-82,-58,-67,195,174,178,175,165,140,91,64,150,0,103,100,264,70,316,322,318,289,321,311,277,276,558,522,559,553,1025,1025]} 1. d4 {[%emt 0:00:02]} d5 {[%emt 0:00:00]} 2. Bg5 {[%emt 0:00:02]} f6 {[%emt 0:00:02]} 3. Bd2 {[%emt 0:00:02]} Nc6 {[%emt 0:00:09]} 4. e3 {[%emt 0:00:02]} e5 {[%emt 0:00:21]} 5. Bb5 {[%emt 0:00:02]} Bd6 {[%emt 0:00:41]} 6. c4 {[%emt 0:00:11] D00: 1 d4 d5: Unusual lines.} dxc4 {[%emt 0:00:02]} 7. Ne2 {[%emt 0:00:16] [#]} Nge7 $146 {[%emt 0:00:13]} ({Predecessor:} 7... Be6 8. Qa4 Nge7 9. Bxc4 Qd7 10. Nbc3 exd4 11. Bxe6 Qxe6 12. Nxd4 Qg4 13. Nxc6 Qxa4 14. Nxa4 Nxc6 {½-½ Harika,D (2494)-Tomilova,E (2338) Wch Rapid (Women) 2018 (8)}) 8. Bxc4 {[%emt 0:00:04] The position is equal.} exd4 {[%emt 0:00:13]} 9. exd4 {[%emt 0:00:03]} Bf5 {[%emt 0:00:02]} 10. Qb3 {[%emt 0:00:13]} Qd7 {[%emt 0:00:23]} 11. Bf7+ {[%emt 0:00:02]} (11. Qxb7 $2 Rb8 12. Qa6 Rxb2 $19) 11... Kf8 {[%emt 0:00:00] Black wants to play ...Ng6.} 12. O-O {[%emt 0:00:06]} (12. Bh5 Be6 13. Qd3 Rd8 $17) 12... h5 {[%emt 0:00:04][%cal Ob7b5,Bh7h5,Bh5h4][%mdl 32]} 13. Bc4 {[%emt 0:00:15]} Rb8 {[%emt 0:00:05]} 14. Re1 {[%emt 0:00:30]} h4 {[%emt 0:00:02][%cal Ob7b5]} 15. h3 {[%emt 0:00:09]} b5 {[%emt 0:00:29]} 16. Bf7 {[%emt 0:00:05][%mdl 8192]} (16. Bxb5 $11 Be6 17. Qd3) 16... Nd8 {[%emt 0:00:08]} 17. Bc4 {[%emt 0:00:08]} bxc4 {[%emt 0:00:33]} 18. Qxb8 {[%emt 0:00:01]} c6 {[%emt 0:00:09]} 19. Qa8 {[%emt 0:00:06]} Nd5 {[%emt 0:00:57]} 20. Ba5 {[%emt 0:00:11]} Bc7 {[%emt 0:00:00] This pair of bishops is nice.} 21. b4 {[%emt 0:01:01]} (21. Qxa7 $2 Bh2+ 22. Kxh2 Qxa7 $19) (21. Bxc7 $142 Qxc7 22. Nbc3) 21... Bxb1 {[%emt 0:00:22]} (21... Bxh3 $17 {( -> ...Qg4)} 22. gxh3 Rh6) 22. Raxb1 $14 {[%emt 0:00:14] Hoping for Kf1.} (22. Rexb1 Kf7 23. Kh1 (23. Qxa7 $2 Bh2+ {[%mdl 64] Discovered Attack} 24. Kxh2 Qxa7 $19) 23... Re8 24. Qxa7 Rxe2 25. Bxc7 Nxc7 $17) 22... Kf7 {[%emt 0:00:01]} 23. Kf1 $2 {[%emt 0:00:18]} (23. Qxa7 $2 Bh2+ 24. Kxh2 Qxa7 $19) (23. Kh1 $1 $16 {and life is bright.} Bb6 24. Bxb6 axb6 25. Qa4) 23... Bh2 $17 {[%emt 0:00:16] And now ...Rg8 would win.} 24. b5 {[%emt 0:00:14]} cxb5 $2 {[%emt 0:00:19][%mdl 8192]} (24... Qf5 $1 $15 25. Ng1 (25. Bxd8 $2 Ne3#) (25. Qxa7+ Kg6 $11) 25... Qd3+ 26. Ne2 Re8) 25. Nc3 $36 {[%emt 0:00:11][%mdl 2048] Keeping Black busy.} Nxc3 {[%emt 0:00:07]} 26. Bxc3 {[%emt 0:00:02]} Rh5 {[%emt 0:00:08]} 27. Bb4 {[%emt 0:00:12]} Nc6 {[%emt 0:00:02] Inhibits Re7+.} 28. Qf8+ {[%emt 0:00:12]} (28. g4 $2 hxg3 29. Qf8+ Kg6 30. Qe8+ Qxe8 31. Rxe8 Rf5 $19) 28... Kg6 {[%emt 0:00:01]} 29. Bc5 {[%emt 0:00:15]} ({White should try} 29. Re4 $16) 29... c3 {[%emt 0:00:01] [#]} (29... Bf4 $11 {remains equal.}) 30. Re4 $1 $16 {[%emt 0:00:05] Strongly threatening Rbe1.} (30. Rxb5 Nxd4 $15) 30... Rg5 $2 {[%emt 0:00:07] [#]} (30... b4 $16 {might work better.}) 31. Rc1 $2 {[%emt 0:00:08]} (31. Rxb5 $2 c2 32. Ba3 Rxb5 $19) (31. Rbe1 $1 $18) 31... Qd5 $2 {[%emt 0:00:01]} ({Black should play} 31... b4 $1 $14) 32. Qe8+ $18 {[%emt 0:00:02]} (32. Rxh4 Qc4+ 33. Ke1 Qe6+ 34. Kf1 (34. Kd1 $2 Rxg2 35. Rxc3 Rg1+ 36. Kd2 f5 $19) 34... Qc4+ 35. Ke1 Qe6+ 36. Kf1 (36. Kd1 $2 Rxg2 37. Rxc3 Rg1+ 38. Kd2 f5 $19) 36... Qc4+ $11) 32... Kf5 {[%emt 0:00:02]} 33. Rg4 {[%emt 0:00:16]} ({Weaker is} 33. Rxh4 Qxg2+ 34. Ke1 (34. Ke2 Bg3 $11) 34... Qf3 $11) 33... Qc4+ {[%emt 0:00:03]} 34. Qe2 {[%emt 0:00:05]} Qxe2+ 35. Kxe2 {[%emt 0:00:01]} b4 $2 {[%emt 0:00:05]} (35... Rxg4 {was necessary.} 36. hxg4+ Ke4 37. Rxc3 Nxd4+ 38. Bxd4 Kxd4 39. Rd3+ Kc4) 36. Rxg5+ {[%emt 0:00:02] White is clearly winning.} fxg5 {[%emt 0:00:01]} 37. d5 {[%emt 0:00:01][%cal Bd4d5,Bd5c6][%mdl 32]} Bf4 {[%emt 0:00:04]} 38. dxc6 {[%emt 0:00:02] What a bad dream for Black. An entertaining game by Rapport.   Weighted Error Value: White=0.37/Black=0.55} 1-0

[Event "Superbet Blitz Poland 2023"]
[Site "Warsaw"]
[Date "2023.05.24"]
[Round "8"]
[White "Deac, Bogdan-Daniel"]
[Black "Vachier-Lagrave, Maxime"]
[Result "1-0"]
[ECO "B54"]
[WhiteElo "2700"]
[BlackElo "2742"]
[Annotator "TA"]
[PlyCount "131"]
[EventDate "2023.05.24"]
[EventType "tourn"]
[EventCountry "POL"]
[SourceTitle "playchess.com"]
[Source "ChessBase"]
[SourceQuality "1"]
[TimeControl "300+2"]

{[%evp 10,131,14,11,18,14,23,14,19,20,18,16,35,33,45,41,45,31,37,22,65,51,123,125,128,122,241,194,209,208,192,203,292,297,287,252,406,69,196,110,102,116,99,89,192,144,148,127,110,108,94,93,97,92,129,123,151,142,136,142,126,109,127,125,197,169,229,121,259,160,166,166,161,129,137,148,143,112,116,75,76,63,157,75,70,52,81,43,50,37,141,141,177,192,372,368,322,282,275,264,915,228,241,184,354,309,589,589,576,574,510,426,572,537,555,506,437,400,632,556,690,687,641,619]} 1. e4 {[%emt 0:00:02]} c5 {[%emt 0:00:01]} 2. Nf3 {[%emt 0:00:02]} d6 {[%emt 0:00:01]} 3. Bb5+ {[%emt 0:00:17]} Bd7 {[%emt 0:00:03]} 4. c4 {[%emt 0:00:11]} Nc6 {[%emt 0:00:09]} 5. d4 {[%emt 0:00:03]} cxd4 {[%emt 0:00:02]} 6. Nxd4 {[%emt 0:00:01]} Nf6 {[%emt 0:00:06] B54: Sicilian: 2...d6 3 d4 cxd4 4 Nxd4, Unusual Lines .} 7. Nc3 {[%emt 0:00:07]} g6 {[%emt 0:00:02]} 8. h3 {[%emt 0:00:38] seems to push 8.0-0 aside.} Bg7 {[%emt 0:00:02][%cal Of6e4] The position is equal.} 9. Be3 {[%emt 0:00:01]} O-O {[%emt 0:00:04]} 10. O-O {[%emt 0:00:02]} Rc8 {[%emt 0:00:09]} 11. Rc1 $1 {[%emt 0:00:22]} a6 {[%emt 0:00:03]} 12. Bxc6 {[%emt 0:00:02]} Bxc6 {[%emt 0:00:01]} 13. Nxc6 {[%emt 0:00:23]} Rxc6 {[%emt 0:00:03] [#]} 14. Qb3 $146 {[%emt 0:00:11]} ({Predecessor:} 14. b3 b5 15. cxb5 axb5 16. e5 dxe5 17. Qxd8 Rxd8 18. Nxb5 Rdc8 19. Rxc6 Rxc6 20. Rd1 {1-0 Sjugirov,S (2680)-Papadiamandis,E (2388) Titled Tuesday intern op 01st Feb-A blitz 2022 (3)}) 14... Qd7 {[%emt 0:00:23]} 15. Rfd1 {[%emt 0:00:05]} Rfc8 {[%emt 0:00:42]} (15... Qc8 $14) 16. e5 $1 $16 {[%emt 0:00:09]} Ne8 {[%emt 0:00:02]} 17. exd6 {[%emt 0:00:49]} Rxd6 {[%emt 0:00:01]} (17... Nxd6 $16 18. c5 Rxc5) 18. c5 {[%emt 0:00:48]} Rxd1+ {[%emt 0:00:02]} 19. Rxd1 {[%emt 0:00:01]} Qc6 {[%emt 0:00:02]} 20. Nd5 {[%emt 0:00:01]} Bf8 {[%emt 0:00:08]} (20... Bf6 $142 21. Nb6 Rc7) 21. Nb6 $18 {[%emt 0:00:02]} Rc7 {[%emt 0:00:16]} 22. Rd8 {[%emt 0:00:08] Black is weak on the dark squares} Ng7 $2 {[%emt 0:00:02]} (22... e6 23. Qd3 f6) 23. Qd5 $2 {[%emt 0:01:14]} (23. Bh6 $18) 23... Ne6 {[%emt 0:00:16] [#]} (23... Qxd5 $1 $14 24. Nxd5 Ne6) 24. Qxc6 {[%emt 0:00:05]} (24. Qxe6 $1 $18 {[%cal Oe3h6] Bh6! would kill now.} Qxe6 25. Bh6 Qe1+ 26. Kh2 Qe5+ 27. g3 (27. f4 Qg7 $16)) 24... Rxc6 $16 {[%emt 0:00:07]} 25. Rb8 {[%emt 0:00:01]} Rc7 {[%emt 0:00:19] Dodges Nd7} (25... Nxc5 $2 26. Bh6 Ne6 27. Nd7 $18) 26. b4 {[%emt 0:00:04]} f6 {[%emt 0:00:09]} (26... f5 $16) 27. Kf1 {[%emt 0:00:01]} (27. Nc4 $18) 27... Kf7 {[%emt 0:00:01]} 28. Ke2 {[%emt 0:00:02] White has more active pieces.} Bg7 {[%emt 0:00:04]} 29. Kd3 {[%emt 0:00:01]} f5 {[%emt 0:00:02]} 30. Kc4 {[%emt 0:00:01]} Be5 {[%emt 0:00:10][%cal Oc7c5]} 31. Ra8 {[%emt 0:00:04] Prevents Rxc5+.} Rc6 {[%emt 0:00:05]} 32. a4 {[%emt 0:00:04]} g5 {[%emt 0:00:10]} 33. b5 {[%emt 0:00:01]} axb5+ {[%emt 0:00:01]} 34. axb5 {[%emt 0:00:01]} Rc7 {[%emt 0:00:01] ...f4 would be deadly.} 35. Nd5 {[%emt 0:00:02]} Rd7 {[%emt 0:00:01]} 36. f3 {[%emt 0:00:03]} Bg3 {[%emt 0:00:13]} (36... f4 $16 {was necessary.} 37. Bf2 Nd8) 37. Rc8 {[%emt 0:00:02]} h6 {[%emt 0:00:07]} (37... Be5 {might work better.} 38. c6 bxc6 39. bxc6 Rd6) 38. Bc1 {[%emt 0:00:02]} (38. c6 $18 bxc6 39. bxc6 (39. Rxc6 Rd8 $16)) 38... Bf2 {[%emt 0:00:07]} (38... Rd8 $16 {was called for.} 39. Rxd8 Nxd8) 39. Ba3 {[%emt 0:00:02]} Rd8 {[%emt 0:00:25]} 40. Rxd8 {[%emt 0:00:01]} Nxd8 $18 {[%emt 0:00:01][%mdl 4096] Endgame KBN-KBN} 41. Bb4 {[%emt 0:00:02]} e6 {[%emt 0:00:02]} 42. Nb6 {[%emt 0:00:02]} Ke8 {[%emt 0:00:02]} 43. Bc3 {[%emt 0:00:03]} Nf7 {[%emt 0:00:04]} 44. Bd4 {[%emt 0:00:02]} Bg3 {[%emt 0:00:05]} 45. c6 {[%emt 0:00:02]} Nd8 {[%emt 0:00:07]} (45... Kd8 $14) 46. cxb7 {[%emt 0:00:03]} (46. Kc5 $142) 46... Nxb7 $16 {[%emt 0:00:01]} 47. Na4 {[%emt 0:00:01]} Ke7 {[%emt 0:00:12]} 48. Nc5 {[%emt 0:00:02]} Nd6+ {[%emt 0:00:01]} 49. Kb4 {[%emt 0:00:01]} Be1+ {[%emt 0:00:02] White stays focused until the end.} (49... e5 $1 $14 50. Be3 Be1+ 51. Ka4 Kd8) 50. Ka4 {[%emt 0:00:01]} Nc4 {[%emt 0:00:04]} 51. Nd3 {[%emt 0:00:03]} Bg3 {[%emt 0:00:03]} (51... Ba5 52. Bg7 Bd2) 52. b6 $18 {[%emt 0:00:01]} Kd7 {[%emt 0:00:08]} 53. Kb5 {[%emt 0:00:02]} Nd6+ {[%emt 0:00:01] [#]} 54. Ka6 $1 {[%emt 0:00:00] And now Bg7 would win.} Kc6 $2 {[%emt 0:00:12]} (54... Kc8 55. Bg7 h5) 55. Nb4+ $2 {[%emt 0:00:03]} (55. Be5) 55... Kd7 {[%emt 0:00:01]} 56. Bc5 {[%emt 0:00:04]} Ne8 $2 {[%emt 0:00:07]} (56... h5 {is a better defense.} 57. b7 Nc4) 57. b7 {[%emt 0:00:03]} Nc7+ $2 {[%emt 0:00:06]} (57... Bb8 58. Ba7 Bh2) 58. Kb6 {[%emt 0:00:03]} Ne8 {[%emt 0:00:02]} 59. Na6 {[%emt 0:00:03]} Nf6 {[%emt 0:00:05]} 60. b8=Q {[%emt 0:00:04] White wants to mate with Qb7+.} Bxb8 {[%emt 0:00:02]} 61. Nxb8+ {[%emt 0:00:00]} Kc8 {[%emt 0:00:03]} 62. Na6 {[%emt 0:00:01]} Kd7 {[%emt 0:00:01]} 63. Nb4 {[%emt 0:00:02]} g4 {[%emt 0:00:04]} (63... e5 $142 64. Bf8 e4 65. fxe4 Nxe4 66. Bxh6 Ke6) 64. Bd4 {[%emt 0:00:02] White is clearly winning.} gxh3 {[%emt 0:00:07]} 65. gxh3 {[%emt 0:00:01]} (65. Bxf6 $2 {perishes.} h2 66. Nd3 h1=Q $19) 65... Nh5 {[%emt 0:00:03]} 66. Be5 {[%emt 0:00:02] Dodges Nf4.   Weighted Error Value: White=0.36/Black=0.53} 1-0

[Event "Superbet Blitz Poland 2023"]
[Site "Warsaw"]
[Date "2023.05.24"]
[Round "8"]
[White "Shevchenko, Kirill"]
[Black "So, Wesley"]
[Result "1/2-1/2"]
[ECO "C77"]
[WhiteElo "2684"]
[BlackElo "2760"]
[Annotator "TA"]
[PlyCount "124"]
[EventDate "2023.05.24"]
[EventType "tourn"]
[EventCountry "POL"]
[SourceTitle "playchess.com"]
[Source "ChessBase"]
[SourceQuality "1"]
[TimeControl "300+2"]

{[%evp 9,124,0,0,0,0,0,0,-7,-10,-6,12,5,10,7,7,6,34,28,36,5,3,14,14,0,0,0,18,0,0,0,0,0,0,-7,0,0,0,0,0,0,0,-7,0,0,0,0,0,0,0,0,0,0,0,0,0,0,0,0,0,0,0,0,0,0,0,0,0,0,0,0,0,0,0,-20,0,0,0,0,0,-23,-23,-23,-23,-23,-23,-75,-76,-59,0,-132,0,0,0,-82,0,-103,0,0,0,0,0,0,0,0,0,0,0,0,0,0,0,0,0,0,0,0,0]} 1. e4 {[%emt 0:00:02]} e5 {[%emt 0:00:01]} 2. Nf3 {[%emt 0:00:02]} Nc6 {[%emt 0:00:01]} 3. Bb5 {[%emt 0:00:01]} a6 {[%emt 0:00:04]} 4. Ba4 {[%emt 0:00:02]} Nf6 {[%emt 0:00:01]} 5. Nc3 {[%emt 0:00:07]} Bc5 {[%emt 0:00:10]} 6. d3 {[%emt 0:00:04] C77: Ruy Lopez: 3...a6 4 Ba4 Nf6, unusual lines.} (6. O-O b5 7. Bb3 O-O 8. d3 h6 9. a4 b4 10. Nd5 d6 11. Be3 Rb8 12. a5 Bxe3 13. fxe3 Nxd5 14. Bxd5 Ne7 15. Bc4 c6 16. Qe1 d5 17. Bb3 f6 18. exd5 cxd5 19. e4 {½-½ Shevchenko,K (2644)-So,W (2776) Warsaw Superbet Classic Blitz 2022 (14.2)}) 6... d6 {[%emt 0:00:07]} 7. Bxc6+ {[%emt 0:00:02]} bxc6 {[%emt 0:00:01]} 8. Be3 {[%emt 0:00:00]} Bxe3 {[%emt 0:00:12]} 9. fxe3 {[%emt 0:00:01]} c5 {[%emt 0:00:03]} 10. O-O {[%emt 0:00:04]} O-O {[%emt 0:00:02]} 11. Qe1 {[%emt 0:00:06]} h6 {[%emt 0:00:10]} 12. Nh4 {[%emt 0:00:37]} g6 {[%emt 0:00:08][%cal Oc5c4] [#]} 13. Nf3 $146 {[%emt 0:00:18]} ({Predecessor:} 13. h3 Be6 14. Qf2 Nh7 15. Nf3 Ng5 16. Qg3 Kh7 17. Nd2 f5 18. h4 Nf7 19. h5 {1-0 Shevchenko,K (2652)-Niemann,H (2637) Junior Speed Qual blitz 2022 (2.110)}) 13... Kg7 {[%emt 0:00:06]} 14. Nd2 {[%emt 0:00:02]} Be6 {[%emt 0:00:04]} 15. b3 {[%emt 0:00:02]} Qe7 {[%emt 0:00:20]} 16. Rf3 {[%emt 0:00:09]} Nd7 {[%emt 0:00:29]} 17. Nc4 {[%emt 0:00:06]} Bxc4 {[%emt 0:00:16]} 18. bxc4 {[%emt 0:00:01]} Rab8 {[%emt 0:00:06]} 19. Qd2 {[%emt 0:00:41]} c6 {[%emt 0:00:06]} 20. a3 {[%emt 0:00:22]} Qd8 {[%emt 0:00:10]} 21. Na4 {[%emt 0:00:18]} h5 {[%emt 0:00:23]} 22. Rff1 {[%emt 0:00:01][%cal Bf3f1,Bf1b1,Bb1b3][%mdl 32]} Qc7 {[%emt 0:00:13]} 23. Rab1 {[%emt 0:00:11]} Rxb1 {[%emt 0:00:04]} 24. Rxb1 {[%emt 0:00:01]} Rb8 {[%emt 0:00:01]} 25. Rb3 {[%emt 0:00:03]} Nf6 {[%emt 0:00:11][%cal Bd7f6,Bf6h5,Bh5g3][%mdl 32]} 26. h3 {[%emt 0:00:08]} h4 {[%emt 0:00:04]} 27. Qe1 {[%emt 0:00:09]} Nh5 {[%emt 0:00:20]} 28. Nc3 {[%emt 0:01:00]} (28. Qxh4 $2 Rxb3 29. cxb3 Qb8 $19) 28... Rxb3 {[%emt 0:00:10]} 29. cxb3 $11 {[%emt 0:00:01][%mdl 4096] Endgame KQN-KQN} Qb6 {[%emt 0:00:03]} 30. Qd1 {[%emt 0:00:06]} Ng3 {[%emt 0:00:04]} 31. Kf2 {[%emt 0:00:02]} Qa5 {[%emt 0:00:01]} 32. Qc1 {[%emt 0:00:01]} Qd8 {[%emt 0:00:05]} 33. Qd1 {[%emt 0:00:05]} a5 {[%emt 0:00:24]} 34. Qf3 {[%emt 0:00:08]} Nh5 {[%emt 0:00:06]} (34... Qb6 $5 35. Qd1 $8 Qd8 $11) 35. Qg4 {[%emt 0:00:03]} Nf6 {[%emt 0:00:19]} 36. Qd1 {[%emt 0:00:06]} ({Don't play} 36. Qxh4 Qb6 37. Ke2 Qxb3 $17) 36... Qb8 {[%emt 0:00:05]} 37. Ke2 {[%emt 0:00:06]} Nh5 {[%emt 0:00:09]} 38. Kd2 {[%emt 0:00:02]} Qd8 {[%emt 0:00:06]} 39. Qf3 {[%emt 0:00:06]} Nf6 {[%emt 0:00:09]} 40. Kc2 {[%emt 0:00:02]} Nh5 {[%emt 0:00:06]} 41. Nd1 {[%emt 0:00:05]} Nf6 {[%emt 0:00:07]} 42. Nf2 {[%emt 0:00:02]} a4 {[%emt 0:00:03]} 43. Nd1 {[%emt 0:00:13]} axb3+ 44. Kxb3 {[%emt 0:00:01]} Qb6+ {[%emt 0:00:06]} 45. Ka2 {[%emt 0:00:01]} Qa5 {[%emt 0:00:05] ...Qd2+ is the strong threat.} 46. Qe2 {[%emt 0:00:02] Prevents Qd2+.} d5 {[%emt 0:00:09]} 47. Qc2 {[%emt 0:00:17]} (47. exd5 $11 cxd5 48. Nb2) 47... d4 $17 {[%emt 0:00:02]} 48. exd4 {[%emt 0:00:05]} exd4 {[%emt 0:00:01]} ({Better is} 48... cxd4 $15 49. Nb2 Nh5) 49. Nf2 {[%emt 0:00:10] [#]} (49. e5 $11 Nh5 50. Qf2) 49... Nh5 {[%emt 0:00:04]} (49... Qe1 $1 $17 50. Nd1 Qg3) 50. e5 $11 {[%emt 0:00:01]} Nf4 {[%emt 0:00:03][%cal Oa5e1]} 51. Ne4 {[%emt 0:00:02] [#]} (51. Qc1 $11 {remains equal.} g5 52. Qd1) 51... Qe1 {[%emt 0:00:05]} (51... Qc7 $1 $17 52. Nxc5 Qxe5) 52. Qf2 {[%emt 0:00:14]} (52. a4 $11) 52... Qe3 {[%emt 0:00:13]} ({Resist} 52... Nxd3 53. Qxe1 Nxe1 54. a4 $16) ({Black should play} 52... Qxf2+ $17 53. Nxf2 Kf8) 53. Qxh4 {[%emt 0:00:01] The position is equal.} Qe2+ {[%emt 0:00:01]} (53... Nxd3 $5 54. Qf6+ $8 Kg8 55. Qd8+ Kg7 56. Qf6+ Kg8 57. Qd8+ Kg7 58. Qf6+ $11) 54. Ka1 {[%emt 0:00:00]} Qd1+ {[%emt 0:00:01]} (54... Nxd3 $5 55. Qf6+ $8 Kg8 56. Qd8+ Kg7 57. Qf6+ Kg8 58. Qd8+ Kg7 59. Qf6+ $11) 55. Ka2 {[%emt 0:00:01]} Qc2+ {[%emt 0:00:02]} (55... Nxd3 $5 56. Qf6+ $8 Kg8 57. Qd8+ Kg7 58. Qf6+ Kg8 59. Qd8+ Kg7 60. Qf6+ $11) 56. Ka1 {[%emt 0:00:00] Some like it hot} Qc1+ {[%emt 0:00:04]} (56... Nxd3 $5 57. Qf6+ $8 Kg8 58. Qd8+ Kh7 59. Qh4+ (59. Ng5+ Kh6 $11) 59... Kg7 60. Qf6+ Kg8 61. Qd8+ Kh7 62. Qh4+ (62. Ng5+ Kh6 $11) 62... Kg7 $11) 57. Ka2 {[%emt 0:00:01]} Qc2+ {[%emt 0:00:02]} (57... Nxd3 $5 58. Qf6+ $8 Kg8 59. Qd8+ Kg7 60. Qf6+ Kg8 61. Qd8+ Kg7 62. Qf6+ $11) 58. Ka1 {[%emt 0:00:00]} Nxd3 {[%emt 0:00:02][%csl Gd3][%cal Rc2b2]} 59. Qf6+ {[%emt 0:00:01]} Kg8 {[%emt 0:00:01][%csl Gd3][%cal Rc2b2]} 60. Qd8+ {[%emt 0:00:02]} Kg7 {[%emt 0:00:02][%csl Gd3][%cal Rc2b2]} 61. Qf6+ {[%emt 0:00:01]} Kg8 {[%emt 0:00:00][%csl Gd3][%cal Rc2b2]} 62. Qd8+ {[%emt 0:00:00]} Kg7 {[%emt 0:00:01] Weighted Error Value: White=0.14 (very precise) /Black=0.10 (very precise)} 1/2-1/2

[Event "Superbet Blitz Poland 2023"]
[Site "Warsaw"]
[Date "2023.05.24"]
[Round "8"]
[White "Wojtaszek, Radoslaw"]
[Black "Duda, Jan-Krzysztof"]
[Result "0-1"]
[ECO "E90"]
[WhiteElo "2670"]
[BlackElo "2724"]
[Annotator "TA"]
[PlyCount "104"]
[EventDate "2023.05.24"]
[EventType "tourn"]
[EventCountry "POL"]
[SourceTitle "playchess.com"]
[Source "ChessBase"]
[SourceQuality "1"]
[TimeControl "300+2"]

{[%evp 18,104,39,32,86,73,86,81,95,24,22,0,70,84,75,92,94,89,94,58,75,29,64,40,57,39,40,30,61,58,59,59,60,67,59,58,63,56,78,34,52,20,37,51,52,37,37,0,16,17,66,0,58,0,0,0,0,-4,0,-37,-51,-43,-23,-23,-23,-240,-248,-240,-136,-244,-197,-237,-191,-171,0,-237,-204,-201,-193,-357,-332,-684,-627,-633,-597,-1437,-288,-1461,-1438]} 1. d4 {[%emt 0:00:01]} Nf6 {[%emt 0:00:01]} 2. c4 {[%emt 0:00:01]} c5 {[%emt 0:00:01]} 3. d5 {[%emt 0:00:01]} g6 {[%emt 0:00:04]} 4. Nc3 {[%emt 0:00:02]} Bg7 {[%emt 0:00:06]} 5. e4 {[%emt 0:00:01]} d6 {[%emt 0:00:01]} 6. Bd3 {[%emt 0:00:03]} e6 {[%emt 0:00:04]} 7. Nf3 {[%emt 0:00:15]} O-O {[%emt 0:00:11]} 8. h3 {[%emt 0:00:05]} exd5 {[%emt 0:00:02]} 9. exd5 {[%emt 0:00:02]} Re8+ {[%emt 0:00:01]} 10. Be3 {[%emt 0:00:01]} Rxe3+ {[%emt 0:00:02] E90: King's Indian: Classical: Early deviations and 6 h3.} 11. fxe3 $16 {[%emt 0:00:02]} Qe7 {[%emt 0:00:02]} 12. e4 {[%emt 0:00:03]} Nbd7 {[%emt 0:00:05] White is better.} 13. O-O {[%emt 0:00:03]} (13. Qd2 $16) 13... Nh5 $1 $11 {[%emt 0:00:14]} 14. Qd2 {[%emt 0:00:11]} Ne5 {[%emt 0:00:07]} ({Better is} 14... Ng3 $11) 15. Ne2 $14 {[%emt 0:00:43]} Bd7 {[%emt 0:00:17]} 16. Nxe5 {[%emt 0:00:02]} Bxe5 {[%emt 0:00:07]} 17. Rf3 {[%emt 0:00:02]} a6 {[%emt 0:00:08]} 18. a4 {[%emt 0:00:07] [#]} b6 $146 {[%emt 0:00:21]} ({Predecessor:} 18... Be8 19. a5 Rb8 20. Raf1 b6 21. axb6 Rxb6 22. Nc3 Kg7 23. Nd1 Nf6 24. Qe2 Bd4+ {0-1 Salimova,N (2372)-Obgolts,E (2376) Titled Tuesday intern op 5th May blitz 2020 (3)}) 19. Bc2 {[%emt 0:01:11]} (19. Raf1 $16) 19... Nf6 {[%emt 0:00:22]} 20. Raf1 {[%emt 0:00:24]} Be8 {[%emt 0:00:07]} 21. b3 {[%emt 0:00:18]} Nd7 {[%emt 0:00:03]} 22. Bd3 {[%emt 0:00:09]} h5 {[%emt 0:00:05]} 23. Kh1 {[%emt 0:00:01]} Bg7 {[%emt 0:00:11]} 24. R3f2 {[%emt 0:00:01]} Ne5 {[%emt 0:00:02]} 25. Ng1 {[%emt 0:00:03]} Kh7 {[%emt 0:00:32]} 26. Nf3 {[%emt 0:00:04]} Bh6 {[%emt 0:00:02]} 27. Qc3 {[%emt 0:00:11] And now Nxe5 would win.} Bf4 {[%emt 0:00:18]} 28. Bc2 {[%emt 0:00:33]} (28. Ng1 $5 {[%cal Rf2f4]} Be3 29. Rc2 $16) 28... Bg3 {[%emt 0:00:12]} 29. Re2 {[%emt 0:00:13]} Nxf3 {[%emt 0:00:20]} 30. Qxf3 {[%emt 0:00:02]} ({Reject} 30. gxf3 Qh4 31. Kg2 Bd7 $17) 30... Be5 {[%emt 0:00:02]} 31. Bd3 {[%emt 0:00:02]} Kg7 {[%emt 0:00:02]} 32. Qf2 {[%emt 0:00:09]} Bd7 {[%emt 0:00:02]} 33. Qe1 {[%emt 0:00:02]} Bd4 {[%emt 0:00:20]} (33... a5 $11) 34. Qd2 {[%emt 0:00:05]} (34. a5 $14) 34... Rh8 {[%emt 0:00:26]} (34... a5 $11) 35. Ree1 {[%emt 0:00:14]} (35. a5 $1 $14) 35... Be5 $11 {[%emt 0:00:10]} 36. Qe3 {[%emt 0:00:03]} g5 {[%emt 0:00:15][%cal Bg6g5,Bg5g4][%mdl 32]} 37. Re2 {[%emt 0:00:15]} Rh7 {[%emt 0:00:23]} 38. Bc2 {[%emt 0:00:06][%cal Ob3b4]} g4 {[%emt 0:00:03]} 39. Ref2 {[%emt 0:00:03]} Kg8 {[%emt 0:00:02]} (39... Kf8 {looks sharper.} 40. Bd1 gxh3 41. g3 Bd4) 40. Rf5 {[%emt 0:00:14]} Bxf5 {[%emt 0:00:05]} 41. exf5 {[%emt 0:00:03] [#]} (41. Rxf5 $11 Kf8 42. Qg5) 41... Qf6 $1 $19 {[%emt 0:00:04]} 42. Bd1 {[%emt 0:00:04]} Kg7 {[%emt 0:00:07]} (42... Rg7 $19 43. Be2 Bd4) 43. Qd3 {[%emt 0:00:03]} (43. Qe1 $17 {was called for.}) 43... Rh8 {[%emt 0:00:02]} 44. Qe3 {[%emt 0:00:03]} Bd4 {[%emt 0:00:04]} 45. Qe4 {[%emt 0:00:04] [#]} Be5 {[%emt 0:00:09] Prevents g3} (45... Kf8 $142 $1 46. Re1 Be5) 46. Qe3 $1 {[%emt 0:00:01]} Kf8 {[%emt 0:00:01][%cal Bg7f8,Bf8e7,Be7d7][%mdl 32]} 47. Qe4 {[%emt 0:00:05]} Ke7 {[%emt 0:00:01]} 48. Be2 $2 {[%emt 0:00:03]} (48. g3 {was necessary.}) 48... Kd7 {[%emt 0:00:01]} 49. Qe3 {[%emt 0:00:02]} (49. Bd1) 49... Bd4 {[%emt 0:00:02]} 50. Qf4 {[%emt 0:00:02]} Re8 {[%emt 0:00:01]} 51. Bd1 {[%emt 0:00:00] White is weak on the dark squares} Re3 $2 {[%emt 0:00:07]} (51... Qh4 {Hoping for ...Re1.} 52. a5 Be3) 52. Qf2 {[%emt 0:00:05] [#]} (52. g3 h4 53. Bxg4 hxg3 54. Rb1) 52... Rxh3+ $1 {[%emt 0:00:02][%mdl 576] Discovered Attack.   Weighted Error Value: White=0.51/Black=0.29 (precise)} 0-1